Workbook

Sheet NSU
B1: Tiia Valtanen | E1: 23.2.2001 Kempele
B2: SUPERPESIS | E2: RUNKOSARJA | I2: Kärkilyönnit (KL), pesänvälit | P2: Ylempi loppusarja | U2: Alempi loppusarja | AB2: Arvo-ottelut ja mitalit
B3: Vuosi | C3: Sija | D3: Seura | E3: OTT | F3: KUN | G3: LÖI | H3: TOI | I3: KL | J3: 0 > 1 | K3: 1 > 2 | L3: 2 > 3 | M3: 3 > k | N3: KL-% | P3: OTT | Q3: KUN | R3: LÖI | S3: TOI | T3: KL | U3: OTT | V3: KUN | W3: LÖI | X3: TOI | Y3: KL | Z3: IL | AA3: LL | AB3: Halli | AC3: K | AD3: H | AE3: P
B4: 2015 | C4: 2. | D4: KeKi 2 | F4: suomensarja
B5: 2016 | C5: 4. | D5: KeKi 2 | F5: suomensarja
B6: 2016 | C6: 7. | D6: KeKi | E6: 5 | F6: 0 | G6: 6 | H6: 1 | I6: 13 | J6: 0 | K6: 1 | L6: 6 | M6: 6 | N6: 52.0 % | O6: 25
B7: 2017 | C7: 6. | D7: KeKi 2 | F7: suomensarja
B8: 2017 | C8: 4. | D8: KeKi | E8: 4 | F8: 0 | G8: 1 | H8: 0 | I8: 13 | J8: 7 | K8: 2 | L8: 3 | M8: 1 | N8: 54.2 % | O8: 24
B9: 2018 | C9: 2. | D9: KeKi 2 | F9: suomensarja
B10: 2018 | C10: 7. | D10: KeKi | E10: 6 | F10: 0 | G10: 9 | H10: 0 | I10: 12 | J10: 0 | K10: 1 | L10: 2 | M10: 9 | N10: 32.4 % | O10: 37
B11: 2019 | C11: 3. | D11: KeKi 2 | F11: suomensarja
B12: 2019 | C12: 3. | D12: OsVa | F12: ykköspesis
B13: 2019 | C13: 8. | D13: KeKi | E13: 13 | F13: 1 | G13: 14 | H13: 3 | I13: 34 | J13: 1 | K13: 1 | L13: 17 | M13: 15 | N13: 45.3 % | O13: 75 | P13: 3 | Q13: 0 | R13: 2 | S13: 0 | T13: 3
B14: 2020 | C14: 7. | D14: KeKi | E14: 19 | F14: 1 | G14: 33 | H14: 2 | I14: 58 | J14: 0 | K14: 2 | L14: 22 | M14: 34 | N14: 38.7 % | O14: 150 | P14: 2 | Q14: 0 | R14: 1 | S14: 0 | T14: 2
B15: 2021 | C15: 7. | D15: KeKi | E15: 17 | F15: 0 | G15: 29 | H15: 3 | I15: 55 | J15: 1 | K15: 5 | L15: 20 | M15: 29 | N15: 48.7 % | O15: 113
B16: 2022 | C16: 5. | D16: SMJ | E16: 21 | F16: 1 | G16: 20 | H16: 3 | I16: 76 | J16: 1 | K16: 7 | L16: 47 | M16: 21 | N16: 57.1 % | O16: 133 | P16: 4 | Q16: 0 | R16: 2 | S16: 1 | T16: 13
B17: 2023 | C17: 5. | D17: SMJ 2 | F17: ykköspesis
B18: 2023 | C18: 4. | D18: SMJ | E18: 23 | F18: 2 | G18: 30 | H18: 5 | I18: 87 | J18: 0 | K18: 4 | L18: 51 | M18: 32 | N18: 64.4 % | O18: 135 | P18: 10 | Q18: 0 | R18: 4 | S18: 3 | T18: 36
B19: 2024 | C19: 3. | D19: SMJ | E19: 24 | F19: 0 | G19: 23 | H19: 0 | I19: 65 | J19: 0 | K19: 5 | L19: 37 | M19: 23 | N19: 49.2 % | O19: 132 | P19: 9 | Q19: 0 | R19: 5 | S19: 0 | T19: 17 | AE19: 1
B20: Yhteensä | E20: =SUM(E5:E19) -> 132 | F20: 5 | G20: 165 | H20: 17 | I20: 413 | J20: 10 | K20: 28 | L20: 205 | M20: 170 | N20: =PRODUCT(I20/O20) -> 50.1 % | O20: =SUM(O4:O19) -> 824 | P20: =SUM(P5:P19) -> 28 | Q20: =SUM(Q5:Q19) -> 0 | R20: 14 | S20: 4 | T20: 71 | U20: 0 | V20: 0 | W20: 0 | X20: 0 | Y20: 0 | Z20: 0 | AA20: 0 | AB20: 0 | AC20: 0 | AD20: 0 | AE20: 1
B21: Pesispörssi | D21: =SUM(F20:H20)+((I20-F20-G20)/3)+(E20/3)+(Z20*25)+(AA20*25)+(AB20*10)+(AC20*25)+(AD20*20)+(AE20*15) -> 327.0
B23: URA SUPERISSA | E23: OTT | F23: KUN | G23: LÖI | H23: TOI | I23: KL | K23: ka/L | L23: ka/T | M23: ka/KL | N23: K - % | P23: ENSIMMÄISET
B24: Runkosarja | E24: =PRODUCT(E20) -> 132 | F24: =PRODUCT(F20) -> 5 | G24: =PRODUCT(G20) -> 165 | H24: =PRODUCT(H20) -> 17 | I24: =PRODUCT(I20) -> 413 | K24: =PRODUCT((F24+G24)/E24) -> 1.29 | L24: =PRODUCT(H24/E24) -> 0.13 | M24: =PRODUCT(I24/E24) -> 3.13 | N24: =PRODUCT(N20) -> 50.1 % | O24: =PRODUCT(O20) -> 824 | P24: Ottelu | R24: 18.05. 2016 Virkiä - KeKi 1-2 (3-4, 2-1, 0-0, 0-1) | AA24: 1. ottelu | AC24: 15 v 2 kk 25 pv
B25: Ylempi loppusarja | E25: =PRODUCT(P20) -> 28 | F25: =PRODUCT(Q20) -> 0 | G25: =PRODUCT(R20) -> 14 | H25: =PRODUCT(S20) -> 4 | I25: =PRODUCT(T20) -> 71 | K25: =PRODUCT((F25+G25)/E25) -> 0.50 | L25: =PRODUCT(H25/E25) -> 0.14 | M25: =PRODUCT(I25/E25) -> 2.54 | N25: =PRODUCT(I25/O25) -> 39.4 % | O25: 180 | P25: Lyöty | R25: 18.05. 2016 Virkiä - KeKi 1-2 (3-4, 2-1, 0-0, 0-1) | AA25: 1. ottelu | AC25: 15 v 2 kk 25 pv
B26: Alempi loppusarja | P26: Tuotu | R26: 20.07. 2016 KeKi - KPK 2-1 (7-3, 1-2, 0-0, 3-1) | AA26: 3. ottelu | AC26: 15 v 4 kk 27 pv
B27: KAIKKI | E27: =SUM(E24:E26) -> 160 | F27: =SUM(F24:F26) -> 5 | G27: =SUM(G24:G26) -> 179 | H27: =SUM(H24:H26) -> 21 | I27: =SUM(I24:I26) -> 484 | K27: =PRODUCT((F27+G27)/E27) -> 1.15 | L27: =PRODUCT(H27/E27) -> 0.13 | M27: =PRODUCT(I27/E27) -> 3.03 | N27: =PRODUCT(I27/O27) -> 48.2 % | O27: =SUM(O24:O26) -> 1004 | P27: Kunnari | R27: 07.08. 2019 KeKi - LaVe 2-0 (5-1, 17-1) | AA27: 28. ottelu | AC27: 18 v 5 kk 15 pv
B29: Seurat | D29: KeKi = Kempeleen Kiri (1915), kasvattajaseura
D30: OsVa = Oulunsalon Vasama (1910)
D31: SMJ = Seinäjoen Maila-Jussit (1932)
